bitfinex-derivatives/quotes_BTCF0:USTF0_20251023
["timestamp","ask_amount","ask_price","bid_price","bid_amount"]
[1761189695975,1.11389926,108750.0,108720.0,0.05541]
[1761189696179,0.11728526,108730.0,108720.0,0.07817762]
[1761189696387,0.14728526,108730.0,108720.0,0.05541]
[1761189696978,0.19662554,108730.0,108720.0,0.05541]
[1761189697178,0.19662554,108730.0,108710.0,0.05541]
[1761189697179,0.7139108,108730.0,108710.0,0.05541]
[1761189697379,0.44128526,108720.0,108710.0,0.07818356]
[1761189698184,0.44128526,108720.0,108710.0,0.05541]
[1761189698786,0.44128526,108720.0,108710.0,0.05641]
[1761189701187,0.51029573,108720.0,108710.0,0.01366]
[1761189701790,0.91029573,108720.0,108710.0,0.001]
[1761189702087,1.39347439,108720.0,108700.0,0.01383]
[1761189702290,0.16682021,108710.0,108700.0,0.01383]
[1761189702490,0.22682021,108710.0,108700.0,0.05658]
[1761189703588,0.17728526,108710.0,108700.0,0.05658]
[1761189703884,0.17728526,108710.0,108700.0,0.01383]
[1761189704091,0.17728526,108710.0,108690.0,0.05681]
[1761189704292,0.44132526,108700.0,108690.0,0.05681]
[1761189704585,0.45132526,108700.0,108690.0,0.05681]
[1761189705592,0.45132526,108700.0,108690.0,0.05781]
[1761189707692,0.45132526,108700.0,108690.0,0.05681]
[1761189708996,0.44132526,108700.0,108690.0,0.148803]
[1761189709400,0.44132526,108700.0,108690.0,0.149803]
[1761189709591,0.11728526,108710.0,108700.0,0.1485646]
[1761189709790,0.44132526,108710.0,108700.0,0.1485646]
[1761189710085,0.12629573,108720.0,108710.0,0.05658]
[1761189710290,0.45033573,108720.0,108710.0,0.05658]
[1761189710994,0.45033573,108720.0,108700.0,0.05658]
[1761189710995,0.56762099,108720.0,108700.0,0.05658]
[1761189711293,0.11728526,108710.0,108700.0,0.05658]
[1761189711491,0.15728526,108710.0,108700.0,0.05658]
[1761189713094,0.44132526,108710.0,108700.0,0.17126077]
[1761189714197,0.44132526,108710.0,108700.0,0.17226077]
[1761189716298,0.32404,108710.0,108700.0,0.17226077]
[1761189716601,0.44132526,108710.0,108700.0,0.17226077]
[1761189717400,0.44132526,108710.0,108700.0,0.08027617]
[1761189718193,0.44132526,108710.0,108700.0,0.17226077]
[1761189718394,0.44132526,108710.0,108700.0,0.1495646]
[1761189718997,0.2461,108730.0,108720.0,0.0573]
[1761189719199,0.16682021,108740.0,108730.0,0.01358]
[1761189719499,0.51086021,108740.0,108730.0,0.0573]
[1761189719892,0.11728526,108740.0,108730.0,0.149259]
[1761189720099,0.44132526,108740.0,108730.0,0.149259]
[1761189720299,0.44332526,108740.0,108730.0,0.149259]
[1761189720599,0.45262875,108740.0,108730.0,0.149259]
[1761189721100,0.33534349,108740.0,108730.0,0.149259]
[1761189721302,0.33334349,108740.0,108730.0,0.149259]
[1761189721600,0.45062875,108740.0,108730.0,0.150259]
[1761189723300,0.5001637,108740.0,108730.0,0.150259]
[1761189723499,0.45062875,108740.0,108730.0,0.150259]
[1761189724196,0.45062875,108740.0,108730.0,0.0583]
[1761189724402,0.45062875,108740.0,108730.0,0.150259]
[1761189724804,0.45062875,108740.0,108730.0,0.0583]
[1761189725198,0.45062875,108740.0,108730.0,0.150259]
[1761189726204,0.45062875,108740.0,108730.0,0.17298943]
[1761189727507,0.32404,108740.0,108730.0,0.17298943]
[1761189728003,0.32404,108740.0,108730.0,0.29027469]
[1761189728205,0.32404,108740.0,108730.0,0.26754426]
[1761189728504,0.32404,108740.0,108730.0,0.150259]
[1761189730105,0.44132526,108740.0,108730.0,0.150259]
[1761189731001,0.44132526,108740.0,108730.0,0.17297014]
[1761189732008,0.44132526,108740.0,108730.0,0.150259]
[1761189733008,0.32404,108740.0,108730.0,0.150259]
[1761189734008,0.44132526,108740.0,108730.0,0.150259]
[1761189736910,0.32404,108740.0,108730.0,0.150259]
[1761189738507,0.13106683,108750.0,108740.0,0.1492506]
[1761189738706,0.45482683,108750.0,108740.0,0.1492506]
[1761189740711,0.0048,108750.0,108740.0,0.26653586]
[1761189741014,0.32864,108750.0,108740.0,0.1492506]
[1761189742210,0.00379999,108750.0,108740.0,0.68923371]
[1761189742416,0.00379999,108750.0,108740.0,0.73923371]
[1761189742811,0.00379999,108750.0,108740.0,0.96923371]
[1761189743315,0.00379999,108750.0,108740.0,0.99381777]
[1761189744116,0.00379999,108750.0,108740.0,0.96923371]
[1761189744315,0.00379999,108750.0,108740.0,0.99381777]
[1761189745816,0.39406021,108790.0,108780.0,0.05976]
[1761189746015,0.91302081,108790.0,108780.0,0.05976]
[1761189746411,0.86348586,108790.0,108780.0,0.1516768]
[1761189747319,0.86548586,108790.0,108780.0,0.1526768]
[1761189747618,0.86848586,108790.0,108780.0,0.06076]
[1761189748119,0.91802081,108790.0,108780.0,0.06076]
[1761189748811,1.31802081,108790.0,108780.0,0.03756]
[1761189749011,1.41990081,108790.0,108780.0,0.001]
[1761189750839,1.53707071,108790.0,108780.0,0.001]
[1761189751121,1.21275071,108790.0,108780.0,0.001]
[1761189751709,1.53703071,108790.0,108780.0,0.001]
[1761189751912,1.21275071,108790.0,108780.0,0.001]
[1761189752112,1.55338916,108790.0,108780.0,0.001]
[1761189752311,1.22910916,108790.0,108780.0,0.001]
[1761189752512,1.55346916,108790.0,108780.0,0.001]
[1761189752713,1.22910916,108790.0,108780.0,0.001]
[1761189753123,1.27910916,108790.0,108780.0,0.001]
[1761189753309,1.22910916,108790.0,108780.0,0.001]
[1761189753514,1.27910916,108790.0,108780.0,0.001]
[1761189753717,2.01065674,108790.0,108780.0,0.001]
[1761189753915,1.94476334,108790.0,108750.0,0.1516979]
[1761189754116,0.23445516,108760.0,108750.0,0.1516979]
[1761189754518,0.16667972,108760.0,108750.0,0.1516979]
[1761189755012,0.2839073,108760.0,108750.0,0.1516979]
[1761189755420,0.16667972,108760.0,108750.0,0.1516979]
[1761189756027,0.04945214,108760.0,108750.0,0.1516979]
[1761189756325,0.04945214,108760.0,108750.0,0.26892548]
[1761189756326,0.16667972,108760.0,108750.0,0.26892548]
[1761189756929,0.11722758,108760.0,108750.0,0.26892548]
[1761189757116,0.16667972,108760.0,108750.0,0.26892548]
[1761189757924,0.11722758,108760.0,108750.0,0.26892548]
[1761189760325,0.37381214,108770.0,108760.0,0.0919337]
[1761189760532,0.29555214,108780.0,108770.0,0.03656]
[1761189760729,0.74701972,108780.0,108770.0,0.05976]
[1761189761031,0.74701972,108780.0,108770.0,0.26891278]
[1761189761328,0.74701972,108780.0,108770.0,0.1516852]
[1761189762131,0.75101972,108780.0,108770.0,0.1526852]
[1761189762328,0.75109972,108780.0,108770.0,0.1526852]
[1761189762526,0.75109751,108780.0,108770.0,0.1526852]
[1761189762833,0.75409751,108780.0,108770.0,0.1526852]
[1761189764032,0.70460758,108780.0,108770.0,0.26991278]
[1761189765228,0.2631,108780.0,108770.0,0.26991278]
[1761189765534,0.007,108780.0,108770.0,0.26991278]
[1761189766333,0.007,108780.0,108770.0,0.66991278]
[1761189767538,0.12422758,108780.0,108770.0,0.66991278]
[1761189771425,0.17371751,108780.0,108770.0,0.5526852]
[1761189771936,0.12422758,108780.0,108770.0,0.5526852]
[1761189772136,0.17371751,108780.0,108770.0,0.5526852]
[1761189772736,0.12422758,108780.0,108770.0,0.5526852]
[1761189775339,0.12122758,108780.0,108770.0,0.5526852]
[1761189775540,0.11722758,108780.0,108770.0,0.5516852]
[1761189775741,0.11722758,108780.0,108770.0,0.5526852]
[1761189776040,0.33394509,108780.0,108770.0,0.1526853]
[1761189776836,0.09948993,108780.0,108770.0,0.1526853]
[1761189777041,0.16722758,108780.0,108770.0,0.1526853]
[1761189777342,0.21671751,108780.0,108770.0,0.1526853]
[1761189778043,0.28445516,108780.0,108770.0,0.1526853]
[1761189778238,0.28445516,108780.0,108770.0,0.1516853]
[1761189779541,0.28445516,108780.0,108770.0,0.1526853]
[1761189779837,0.33394509,108780.0,108770.0,0.1526853]
[1761189780235,0.28445516,108780.0,108770.0,0.1526853]
[1761189781042,0.09948993,108780.0,108770.0,0.1526853]
[1761189781343,0.09948993,108780.0,108770.0,0.06076]
[1761189781344,0.33394509,108780.0,108770.0,0.06076]
[1761189781536,0.68445516,108780.0,108770.0,0.06076]
[1761189781842,1.05806509,108780.0,108770.0,0.05976]
[1761189782734,1.05806509,108780.0,108770.0,0.1516852]
[1761189786141,0.21671751,108780.0,108770.0,0.26891278]
[1761189786348,0.54075751,108780.0,108770.0,0.26891278]
[1761189787156,0.54075751,108780.0,108770.0,0.1516852]
[1761189787444,0.54075751,108780.0,108770.0,0.26891278]
[1761189787944,0.54075751,108780.0,108770.0,0.1516852]
[1761189788849,0.54075751,108780.0,108770.0,0.26891278]
[1761189789449,0.49126758,108780.0,108770.0,0.26891278]
[1761189789850,0.60849516,108780.0,108770.0,0.1516852]
[1761189792051,0.80168274,108780.0,108760.0,0.1509726]
[1761189792250,0.50716377,108770.0,108760.0,0.1509737]
[1761189792456,0.52716377,108770.0,108760.0,0.05904]
[1761189792657,0.52716377,108770.0,108760.0,0.1509737]
[1761189792954,0.52716377,108770.0,108760.0,0.05904]
[1761189794051,0.57845516,108770.0,108760.0,0.03728]
[1761189794255,0.57845516,108770.0,108760.0,0.001]
[1761189794454,1.04460542,108770.0,108760.0,0.001]
[1761189794652,1.04460542,108770.0,108750.0,0.05904]
[1761189794853,0.23445516,108760.0,108750.0,0.1509822]
[1761189795655,0.39015026,108770.0,108750.0,0.05904]
[1761189795963,0.48015026,108770.0,108750.0,0.05904]
[1761189796349,0.48115026,108770.0,108750.0,0.05904]
[1761189796957,0.30060542,108760.0,108750.0,0.05904]
[1761189797153,0.35060542,108760.0,108750.0,0.05904]
[1761189798159,0.33403343,108760.0,108750.0,0.05904]
[1761189801765,0.33403343,108760.0,108750.0,0.1509822]
[1761189802770,0.33403343,108760.0,108750.0,0.05904]
[1761189804162,0.28445516,108760.0,108750.0,0.05904]
[1761189805066,0.16722758,108760.0,108750.0,0.05904]
[1761189805264,0.55837516,108760.0,108750.0,0.05904]
[1761189806164,0.58837516,108760.0,108750.0,0.05904]
[1761189806555,0.63795343,108760.0,108750.0,0.05904]
[1761189806956,0.58837516,108760.0,108750.0,0.05904]
[1761189807359,0.63795343,108760.0,108750.0,0.05904]
[1761189807563,0.63895343,108760.0,108750.0,0.05904]
[1761189808066,0.58937516,108760.0,108750.0,0.05904]
[1761189808565,0.63895343,108760.0,108750.0,0.05904]
[1761189810768,0.52076995,108760.0,108750.0,0.05904]
[1761189811365,0.47119168,108760.0,108750.0,0.05904]
[1761189811767,0.52076995,108760.0,108750.0,0.05904]
[1761189812062,0.47119168,108760.0,108750.0,0.05904]
[1761189812269,0.47219168,108760.0,108750.0,0.05904]
[1761189812867,0.52176995,108760.0,108750.0,0.05904]
[1761189813068,0.52076995,108760.0,108750.0,0.05904]
[1761189813270,0.47119168,108760.0,108750.0,0.05904]
[1761189814170,0.47219168,108760.0,108750.0,0.05904]
[1761189815373,0.47119168,108760.0,108750.0,0.05904]
[1761189817072,0.53734194,108760.0,108740.0,0.0598]
[1761189817277,0.16683956,108750.0,108740.0,0.0598]
[1761189817477,0.19683956,108750.0,108740.0,0.0598]
[1761189817965,0.20614116,108750.0,108740.0,0.0598]
[1761189818974,0.15657328,108750.0,108740.0,0.0598]
[1761189819878,0.32341284,108750.0,108740.0,0.0598]
[1761189820081,0.33999522,108750.0,108740.0,0.0598]
[1761189820267,0.42921186,108750.0,108740.0,0.0598]
[1761189820471,0.52993031,108750.0,108740.0,0.0598]
[1761189820670,0.48033328,108750.0,108740.0,0.0598]
[1761189820881,0.52993193,108750.0,108740.0,0.0598]
[1761189821279,0.48033328,108750.0,108740.0,0.0598]
[1761189821769,0.64721201,108750.0,108740.0,0.01366]
[1761189821966,0.59760496,108750.0,108730.0,0.05955]
[1761189822177,0.16688063,108740.0,108730.0,0.05955]
[1761189822376,0.21688063,108740.0,108730.0,0.05955]
[1761189823075,0.16727168,108740.0,108730.0,0.05955]
[1761189823278,0.16727168,108740.0,108730.0,0.06055]
[1761189825880,0.21688063,108740.0,108730.0,0.06055]
[1761189826971,0.54060063,108740.0,108730.0,0.06055]
[1761189829175,0.37372,108740.0,108730.0,0.06055]
[1761189829377,0.42332895,108740.0,108730.0,0.06055]
[1761189829681,0.09960895,108740.0,108730.0,0.06055]
[1761189829876,0.37368,108740.0,108730.0,0.06055]
[1761189830684,0.54056063,108740.0,108730.0,0.06055]
[1761189830884,0.49095168,108740.0,108730.0,0.06055]
[1761189831280,0.54056063,108740.0,108730.0,0.06055]
[1761189831785,0.49095168,108740.0,108730.0,0.06055]
[1761189833391,0.49095168,108740.0,108730.0,0.57782168]
[1761189833392,0.32368,108740.0,108730.0,0.57782168]
[1761189833587,0.32368,108740.0,108730.0,0.66978078]
[1761189833982,0.32368,108740.0,108730.0,0.5525091]
[1761189837387,0.32368,108740.0,108730.0,0.46055]
[1761189837684,0.47095168,108740.0,108730.0,0.06055]
[1761189838291,0.52056063,108740.0,108730.0,0.06055]
[1761189841291,0.47095168,108740.0,108730.0,0.06055]
[1761189841493,0.75095168,108740.0,108730.0,0.01441]
[1761189841692,1.21710194,108740.0,108730.0,0.001]
[1761189842392,1.21710194,108740.0,108730.0,0.03613]
[1761189842593,0.93710194,108740.0,108730.0,0.0583]
[1761189842786,0.53710194,108740.0,108730.0,0.0583]
[1761189843483,1.25870194,108740.0,108730.0,0.0583]
[1761189845192,1.49870194,108740.0,108730.0,0.0583]
[1761189845398,1.89870194,108740.0,108730.0,0.001]
[1761189845584,2.10252336,108740.0,108710.0,0.05713]
[1761189845893,0.54420932,108720.0,108710.0,0.05713]
[1761189846093,0.93800932,108720.0,108710.0,0.05713]
[1761189846494,0.87187168,108720.0,108710.0,0.05713]
[1761189846882,0.87187168,108720.0,108710.0,0.05913]
[1761189847497,0.9214706,108720.0,108710.0,0.05913]
[1761189847896,0.9214706,108720.0,108710.0,0.06013]
[1761189848098,0.87187168,108720.0,108710.0,0.06013]
[1761189848293,0.9214706,108720.0,108710.0,0.06013]
[1761189848492,0.87187168,108720.0,108710.0,0.05813]
[1761189848690,0.87187168,108720.0,108710.0,0.06013]
[1761189850203,0.9214706,108720.0,108710.0,0.06013]
[1761189852304,0.51103168,108720.0,108710.0,0.06013]
[1761189852504,0.5276706,108730.0,108720.0,0.0573]
[1761189852801,0.9114706,108730.0,108720.0,0.0573]
[1761189853601,0.9114706,108730.0,108720.0,0.0583]
[1761189855691,0.5876706,108730.0,108720.0,0.0583]
[1761189855900,0.9114306,108730.0,108720.0,0.0583]
[1761189856399,0.79415892,108730.0,108720.0,0.5502675]
[1761189857099,0.79415892,108730.0,108720.0,0.1502675]
[1761189858610,0.79415892,108730.0,108720.0,0.0583]
[1761189858804,0.9114306,108730.0,108720.0,0.0583]
[1761189859104,0.8514306,108730.0,108720.0,0.0583]
[1761189859809,1.0041306,108730.0,108720.0,0.0583]
[1761189860109,0.8514306,108730.0,108720.0,0.1502675]
[1761189860507,0.80183168,108730.0,108720.0,0.1502675]
[1761189861010,0.8514306,108730.0,108720.0,0.0583]
[1761189861308,0.80183168,108730.0,108720.0,0.0583]
[1761189861510,0.8514306,108730.0,108720.0,0.0583]
[1761189862501,0.9014306,108730.0,108720.0,0.0583]
[1761189863505,0.85183168,108730.0,108720.0,0.0583]
[1761189867004,0.9414306,108730.0,108720.0,0.0583]
[1761189867313,0.9014306,108730.0,108720.0,0.001]
[1761189868007,0.9014306,108730.0,108720.0,0.02378]
[1761189868704,0.9014306,108730.0,108720.0,0.03739]
[1761189869012,0.9014306,108730.0,108720.0,0.05858]
[1761189869912,1.0541306,108730.0,108720.0,0.05858]
[1761189870113,0.9014306,108730.0,108720.0,0.05858]
[1761189870809,0.9514306,108730.0,108720.0,0.05858]
[1761189871014,0.95796932,108730.0,108720.0,0.03739]
[1761189871204,0.96796932,108730.0,108720.0,0.03739]
[1761189871511,0.91796932,108730.0,108720.0,0.03739]
[1761189872812,1.0353854,108730.0,108720.0,0.03739]
[1761189873311,1.0353854,108730.0,108720.0,0.05858]
[1761189873524,0.91804152,108730.0,108720.0,0.05858]
[1761189873715,0.90153067,108730.0,108720.0,0.05858]
[1761189876914,0.90137067,108730.0,108720.0,0.26789138]
[1761189877312,0.57777067,108730.0,108720.0,0.26789138]
[1761189877510,0.90137067,108730.0,108720.0,0.5505475]
[1761189877711,0.85137067,108730.0,108720.0,0.66789138]
[1761189879122,0.47814388,108730.0,108720.0,0.69045603]
[1761189879416,0.80178388,108730.0,108720.0,0.69045603]
[1761189880509,0.80178388,108730.0,108720.0,0.59848853]
[1761189881025,0.80178388,108730.0,108720.0,0.48114465]
[1761189881516,0.80178388,108730.0,108720.0,0.57311215]
[1761189882116,0.80178388,108730.0,108720.0,0.69045603]
[1761189882316,0.44098388,108730.0,108720.0,0.69045603]
[1761189884618,0.44098388,108730.0,108720.0,0.59848853]
[1761189885116,0.44098388,108730.0,108720.0,0.48114465]
[1761189886023,0.80178388,108730.0,108720.0,0.08114465]
[1761189886513,0.44098388,108730.0,108720.0,0.08114465]
[1761189886719,0.80178388,108730.0,108720.0,0.17311215]
[1761189886922,0.44098388,108730.0,108720.0,0.17311215]
[1761189887317,0.44098388,108730.0,108720.0,0.08114465]
[1761189887821,0.44098388,108730.0,108720.0,0.05858]
[1761189887822,1.01875455,108730.0,108720.0,0.05858]
[1761189888219,1.0352654,108730.0,108720.0,0.05858]
[1761189889018,0.96912776,108730.0,108720.0,0.05858]
[1761189891118,1.01876406,108730.0,108720.0,0.05858]
[1761189894816,0.54062018,108730.0,108720.0,0.1505475]
[1761189895619,0.21698018,108730.0,108720.0,0.5113475]
[1761189895816,0.49054018,108730.0,108720.0,0.5113475]
[1761189897330,0.49054018,108730.0,108720.0,0.41938]
[1761189898025,0.53054018,108730.0,108720.0,0.41938]
[1761189898326,0.48090388,108730.0,108720.0,0.08113915]
[1761189898525,0.48090388,108730.0,108720.0,0.17310665]
[1761189898727,0.53054018,108730.0,108720.0,0.17310665]
[1761189899127,0.53054018,108730.0,108720.0,0.53390665]
[1761189899322,0.36356,108730.0,108720.0,0.53390665]
[1761189899527,0.48090388,108730.0,108720.0,0.53390665]
[1761189899826,0.15734388,108730.0,108720.0,0.53390665]
[1761189900022,0.53058018,108730.0,108720.0,0.53390665]
[1761189900331,0.49054018,108730.0,108720.0,0.53390665]
[1761189900627,0.44090388,108730.0,108720.0,0.53390665]
[1761189900828,0.44090388,108730.0,108720.0,0.44193915]
[1761189901025,0.49054018,108730.0,108720.0,0.44193915]
[1761189901715,0.49054018,108730.0,108720.0,0.53390665]
[1761189902524,0.49054018,108730.0,108720.0,0.93390665]
[1761189902729,0.44090388,108730.0,108720.0,0.53390665]
[1761189904232,0.44090388,108730.0,108720.0,0.65125053]
[1761189905122,0.44090388,108730.0,108720.0,0.53390665]
[1761189905727,0.44090388,108730.0,108720.0,0.44193915]
[1761189906227,1.01868406,108730.0,108720.0,0.08113915]
[1761189906531,0.90134018,108730.0,108720.0,0.17310665]
[1761189907530,0.90134018,108730.0,108720.0,0.08113915]
[1761189908818,0.90134018,108730.0,108720.0,0.05858]
[1761189909022,0.90134018,108730.0,108720.0,0.08115415]
[1761189909627,1.01868406,108730.0,108720.0,0.08115415]
[1761189909826,1.01868406,108730.0,108720.0,0.05858]
[1761189910029,1.01868406,108730.0,108720.0,0.0811543]
[1761189910230,1.01868406,108730.0,108720.0,0.05858]
[1761189913029,0.90134018,108730.0,108720.0,0.05858]
[1761189913635,0.90134018,108730.0,108720.0,0.1505475]
[1761189914034,0.90134018,108730.0,108720.0,0.05858]
[1761189915436,0.90134018,108730.0,108720.0,0.1505475]
[1761189916332,0.16698018,108730.0,108720.0,0.5113475]
[1761189916526,0.49050018,108730.0,108720.0,0.53392148]
[1761189916937,0.49050018,108730.0,108720.0,0.5113475]
[1761189918137,0.49050018,108730.0,108720.0,0.53392278]
[1761189918543,0.49050018,108730.0,108720.0,0.44195528]
[1761189918746,0.49050018,108730.0,108720.0,0.53392278]
[1761189919349,0.85130018,108730.0,108720.0,0.17312278]
[1761189919741,0.3731563,108730.0,108720.0,0.53392278]
[1761189919947,0.49050018,108730.0,108720.0,0.53392278]
[1761189921550,0.49050018,108730.0,108720.0,1.05126666]
[1761189921751,0.44086388,108730.0,108720.0,1.05126666]
[1761189921950,0.44086388,108730.0,108720.0,0.93392278]
[1761189922952,0.44086388,108730.0,108720.0,1.05126666]
[1761189923354,0.16698018,108740.0,108730.0,0.1485391]
[1761189923650,0.60784406,108740.0,108730.0,0.1485391]
[1761189923953,0.04966128,108740.0,108730.0,1.16662491]
[1761189924250,0.04966128,108760.0,108750.0,0.1491921]
[1761189924457,0.44118388,108760.0,108750.0,0.64993403]
[1761189925242,0.16700516,108770.0,108760.0,0.1491837]
[1761189925442,0.51084516,108770.0,108760.0,0.1491837]
[1761189925654,0.46118388,108770.0,108760.0,0.1491837]
[1761189926153,0.44118388,108770.0,108760.0,0.1491837]
[1761189926948,0.11734388,108770.0,108760.0,0.5099837]
[1761189927148,0.44114388,108770.0,108760.0,0.62832758]
[1761189927348,0.44114388,108770.0,108760.0,0.5109837]
[1761189929755,0.44114388,108770.0,108760.0,0.5099837]
[1761189929956,0.44114388,108770.0,108760.0,0.5109837]
[1761189931355,0.23468776,108770.0,108760.0,0.1501837]
[1761189931657,0.66802904,108770.0,108760.0,0.05825]
[1761189931964,1.42882904,108770.0,108760.0,0.0364]
[1761189932756,1.31140654,108770.0,108760.0,0.0364]
[1761189933657,1.31140654,108770.0,108760.0,0.0354]
[1761189933860,1.31240654,108770.0,108760.0,0.0354]
[1761189934261,1.31140654,108770.0,108760.0,0.0354]
[1761189935559,1.31140654,108770.0,108750.0,0.05725]
[1761189935864,0.11726526,108760.0,108750.0,0.05725]
[1761189936064,0.15726526,108760.0,108750.0,0.1491922]
[1761189937157,0.15726526,108760.0,108750.0,0.05725]
[1761189937557,0.51806526,108760.0,108740.0,0.1491935]
[1761189937765,0.44102526,108750.0,108740.0,0.1491935]
[1761189938270,0.44102526,108750.0,108740.0,0.5099935]
[1761189938566,0.32376,108750.0,108740.0,0.5099935]
[1761189940560,0.32376,108750.0,108740.0,0.5109935]
[1761189944269,0.32376,108750.0,108740.0,0.5099935]
[1761189944565,0.32376,108750.0,108740.0,0.5109935]
[1761189945863,0.3608,108770.0,108750.0,0.1491922]
[1761189946073,0.50806526,108770.0,108760.0,0.05725]
[1761189946360,0.83166526,108770.0,108760.0,0.1491837]
[1761189946557,0.52052654,108770.0,108760.0,0.1491837]
[1761189946758,0.47086526,108770.0,108760.0,0.1491837]
[1761189947363,0.3536,108770.0,108760.0,0.1491837]
[1761189947561,0.47086526,108770.0,108760.0,0.1491837]
[1761189948469,0.03,108770.0,108760.0,0.1491837]
[1761189948960,0.14726526,108770.0,108760.0,0.1491837]
[1761189949166,0.47106526,108770.0,108760.0,0.1501837]
[1761189951167,0.47106526,108770.0,108760.0,0.5109837]
[1761189951963,0.47106526,108770.0,108760.0,0.5099837]
[1761189952163,0.47106526,108770.0,108760.0,0.5109837]
[1761189952368,0.47106526,108770.0,108760.0,0.41905]
[1761189952562,0.14726526,108770.0,108760.0,0.05725]
[1761189952774,0.47102526,108770.0,108760.0,0.05825]
[1761189953572,0.47102526,108770.0,108760.0,0.17281836]
[1761189953773,0.47102526,108770.0,108760.0,0.07988466]
[1761189954170,0.14726526,108770.0,108760.0,0.05725]
[1761189954369,0.47098526,108770.0,108760.0,0.05725]
[1761189954674,0.47098526,108770.0,108760.0,0.07988369]
[1761189955068,0.47098526,108770.0,108760.0,0.05725]
[1761189955374,0.83178526,108770.0,108760.0,0.05725]
[1761189955676,0.14726526,108770.0,108760.0,0.05725]
[1761189955874,0.47094526,108770.0,108760.0,0.05725]
[1761189956570,0.14726526,108770.0,108760.0,0.05725]
[1761189956776,0.47094526,108770.0,108760.0,0.1491837]
[1761189957173,0.47094526,108770.0,108760.0,0.5491837]
[1761189958266,0.52060654,108770.0,108760.0,0.5491837]
[1761189958475,0.52060654,108770.0,108760.0,0.05825]
[1761189959079,0.52060654,108770.0,108760.0,0.1501837]
[1761189959268,0.17614699,108780.0,108760.0,1.02824896]
[1761189959473,0.32388,108770.0,108760.0,0.5099837]
[1761189959674,0.32388,108770.0,108760.0,0.53261955]
[1761189960275,0.32388,108770.0,108760.0,0.53361955]
[1761189961580,0.32388,108770.0,108760.0,0.53261955]
[1761189961770,0.32388,108770.0,108760.0,0.53361955]
[1761189962374,0.32388,108770.0,108760.0,1.05088481]
[1761189962579,0.37350128,108780.0,108770.0,0.1491153]
[1761189962781,0.45350128,108780.0,108770.0,0.62718056]
[1761189963084,0.45350128,108780.0,108770.0,0.5099153]
[1761189963380,0.40384,108780.0,108770.0,0.5099153]
[1761189965384,0.40384,108780.0,108770.0,0.53252745]
[1761189966083,0.40384,108780.0,108770.0,0.53352745]
[1761189966285,0.40384,108780.0,108770.0,0.5109153]
[1761189966481,0.40384,108780.0,108770.0,0.53352292]
[1761189967689,0.40384,108780.0,108770.0,0.62818056]
[1761189967980,0.40384,108780.0,108770.0,0.5109153]
[1761189969383,0.52110526,108780.0,108770.0,0.5109153]
[1761189969583,0.19726526,108780.0,108770.0,0.5109153]
[1761189969981,0.08,108780.0,108770.0,0.5109153]
[1761189973388,0.19726526,108780.0,108770.0,0.5109153]
[1761189974482,0.08,108780.0,108770.0,0.5109153]
[1761189975986,0.08,108780.0,108770.0,0.53351643]
[1761189978292,0.08,108780.0,108770.0,0.5109153]
[1761189979293,0.08,108780.0,108770.0,0.62818056]
[1761189979494,0.08,108780.0,108770.0,0.5109153]
[1761189981090,0.05446128,108790.0,108780.0,0.0919168]
[1761189981290,0.49814128,108790.0,108780.0,0.5099068]
[1761189982997,0.50711093,108790.0,108780.0,0.5099068]
[1761189983295,0.61540654,108790.0,108780.0,0.5099068]
[1761189986602,0.49814128,108790.0,108780.0,0.5099068]
[1761189986793,0.37814128,108790.0,108780.0,0.5099068]
[1761189990402,0.32848,108790.0,108780.0,0.53262337]
[1761189991299,0.37814128,108790.0,108780.0,0.53262337]
[1761189991508,0.49540654,108790.0,108780.0,0.53262337]
[1761189992297,0.49540654,108790.0,108780.0,0.53262347]
[1761189992502,0.85620654,108790.0,108780.0,0.17182347]
[1761189992704,0.49540654,108790.0,108780.0,0.17183566]
[1761189993004,0.49540654,108790.0,108780.0,0.53263566]
[1761189993505,0.49540654,108790.0,108780.0,0.17183566]
[1761189994798,0.49532997,108790.0,108780.0,0.17183566]
[1761189999204,0.49532997,108790.0,108780.0,0.53263566]
[1761189999504,0.0048,108790.0,108780.0,0.76701304]
[1761189999702,0.44546869,108790.0,108780.0,0.53263566]
[1761190001210,0.44546869,108790.0,108780.0,0.64982435]
[1761190002409,0.44546869,108790.0,108780.0,0.53263566]
[1761190003004,0.44546869,108790.0,108780.0,0.64982435]
[1761190003511,0.32828,108790.0,108780.0,0.64982435]
[1761190003707,0.44546869,108790.0,108780.0,0.64982435]
[1761190004009,0.44546869,108790.0,108780.0,0.64982677]
[1761190004209,0.44546869,108790.0,108780.0,0.53263808]
[1761190005309,0.44546869,108790.0,108780.0,0.64982677]
[1761190006005,0.44546869,108790.0,108780.0,0.53263808]
[1761190008106,0.44546869,108790.0,108780.0,0.17183808]
[1761190008313,0.44546869,108790.0,108780.0,0.17183818]
[1761190012415,0.49512997,108790.0,108780.0,0.17183818]
[1761190012817,1.01231866,108790.0,108780.0,0.01375]
[1761190013116,1.43959502,108790.0,108770.0,0.06019]
[1761190013314,0.28402299,108780.0,108770.0,0.06019]
[1761190013510,0.32402299,108780.0,108770.0,0.06019]
[1761190014121,0.72402299,108780.0,108770.0,0.06019]
[1761190014714,0.48964561,108780.0,108770.0,0.06019]
[1761190014915,0.72402299,108780.0,108770.0,0.06019]
[1761190015114,0.72402299,108780.0,108770.0,0.08290667]
[1761190015315,0.72402299,108780.0,108770.0,0.06019]
[1761190017915,1.08482299,108780.0,108770.0,0.06019]
[1761190018926,0.72402299,108780.0,108770.0,0.42099]
[1761190019217,0.28402299,108780.0,108770.0,0.5129153]
[1761190019423,0.60754299,108780.0,108770.0,0.5129153]
[1761190019625,0.60754299,108780.0,108770.0,0.42099]
[1761190020120,0.60754299,108780.0,108770.0,0.06019]
[1761190022819,0.28402299,108780.0,108770.0,0.06019]
[1761190023020,0.60754299,108780.0,108770.0,0.06019]
[1761190024627,0.62754299,108780.0,108770.0,0.06019]
[1761190025029,0.98834299,108780.0,108770.0,0.06019]
[1761190028319,0.93869738,108780.0,108770.0,0.06019]
[1761190028632,0.93969738,108780.0,108770.0,0.06019]
[1761190028930,0.94069738,108780.0,108770.0,0.06019]
[1761190029530,1.50745168,108780.0,108750.0,0.5126692]
[1761190029730,0.23437738,108760.0,108750.0,0.5353616]
[1761190030134,0.44066869,108760.0,108750.0,0.5353616]
[1761190030928,0.55785738,108760.0,108750.0,0.5353616]
[1761190031636,0.55785738,108760.0,108750.0,0.4434224]
[1761190031826,0.55785738,108760.0,108750.0,0.4444224]
[1761190033021,0.59785738,108760.0,108750.0,0.06093]
[1761190033631,0.64750299,108760.0,108750.0,0.06093]
[1761190034135,0.59785738,108760.0,108750.0,0.06093]